fUST/lending_fUST_20260519
["ID","MTS","AMOUNT","RATE_DAILY","PERIOD"]
[422639647,1779197443000,-151.0,0.0001,2]
[422639588,1779197443000,-644.79446246,9.55e-05,2]
[422639587,1779197443000,-621.78829552,9.495e-05,2]
[422639589,1779197443000,-462.48,9.589e-05,2]
[422639590,1779197443000,-532.54339535,9.589e-05,2]
[422639591,1779197443000,-189.66,9.589e-05,2]
[422639595,1779197443000,-500.0,9.589e-05,2]
[422639597,1779197443000,-960.84,9.589e-05,2]
[422639593,1779197443000,-518.42,9.589e-05,2]
[422639594,1779197443000,-500.0,9.589e-05,2]
[422639599,1779197443000,-500.0,9.589e-05,2]
[422639592,1779197443000,-710.09,9.589e-05,2]
[422639598,1779197443000,-500.0,9.589e-05,2]
[422639613,1779197443000,-745.65223616,9.77e-05,2]
[422639596,1779197443000,-4869.65,9.589e-05,2]
[422639611,1779197443000,-719.04747942,9.715e-05,2]
[422639602,1779197443000,-500.0,9.589e-05,2]
[422639601,1779197443000,-805.65,9.589e-05,2]
[422639604,1779197443000,-500.0,9.589e-05,2]
[422639606,1779197443000,-307.09081687,9.589e-05,2]
[422639609,1779197443000,-668.65185757,9.605e-05,2]
[422639605,1779197443000,-500.0,9.589e-05,2]
[422639603,1779197443000,-541.70455482,9.589e-05,2]
[422639608,1779197443000,-717.1,9.589e-05,2]
[422639607,1779197443000,-626.08,9.589e-05,2]
[422639612,1779197443000,-2481.09826505,9.725e-05,2]
[422639614,1779197443000,-1000.0,9.816e-05,2]
[422639615,1779197443000,-244.0,9.816e-05,2]
[422639600,1779197443000,-500.0,9.589e-05,2]
[422639646,1779197443000,-151.0,0.0001,2]
[422639661,1779197443000,-805.65,0.00010136,2]
[422639649,1779197443000,-151.0,0.0001,2]
[422639690,1779197443000,-626.08,0.0001041,2]
[422639679,1779197443000,-4869.65,0.0001041,2]
[422639680,1779197443000,-960.84,0.0001041,2]
[422639685,1779197443000,-279.40358883,0.0001041,2]
[422639686,1779197443000,-805.65,0.0001041,2]
[422639687,1779197443000,-500.0,0.0001041,2]
[422639684,1779197443000,-500.0,0.0001041,2]
[422639693,1779197443000,-151.0,0.0001041,2]
[422639704,1779197443000,-16450.974841,0.0001049,2]
[422639703,1779197443000,-8305.48742,0.0001049,2]
[422639692,1779197443000,-181.23445963,0.0001041,2]
[422639702,1779197443000,-160.0,0.0001049,2]
[422639695,1779197443000,-151.0,0.0001041,2]
[422639689,1779197443000,-500.0,0.0001041,2]
[422639700,1779197443000,-1840.373224,0.0001046,2]
[422639694,1779197443000,-151.0,0.0001041,2]
[422639696,1779197443000,-250.0,0.00010411,2]
[422639698,1779197443000,-160.0,0.0001046,2]
[422639701,1779197443000,-270.724776,0.00010464,2]
[422639697,1779197443000,-403.2409,0.00010438,2]
[422639706,1779197443000,-2504.156982,0.0001052,2]
[422639705,1779197443000,-160.0,0.0001052,2]
[422639648,1779197443000,-151.0,0.0001,2]
[422639707,1779197443000,-4848.313965,0.0001052,2]
[422639712,1779197443000,-160.0,0.00010524,2]
[422639711,1779197443000,-3350.506692,0.00010524,2]
[422639709,1779197443000,-160.0,0.00010524,2]
[422639708,1779197443000,-425.603503,0.0001052,2]
[422639699,1779197443000,-1000.186612,0.0001046,2]
[422639682,1779197443000,-500.0,0.0001041,2]
[422639710,1779197443000,-1755.253346,0.00010524,2]
[422639691,1779197443000,-717.1,0.0001041,2]
[422639688,1779197443000,-500.0,0.0001041,2]
[422639651,1779197443000,-177.8018764,0.0001,2]
[422639654,1779197443000,-500.0,0.00010136,2]
[422639652,1779197443000,-710.09,0.00010136,2]
[422639655,1779197443000,-422.60213202,0.00010136,2]
[422639657,1779197443000,-960.84,0.00010136,2]
[422639650,1779197443000,-151.0,0.0001,2]
[422639660,1779197443000,-500.0,0.00010136,2]
[422639662,1779197443000,-500.0,0.00010136,2]
[422639658,1779197443000,-500.0,0.00010136,2]
[422639656,1779197443000,-4869.65,0.00010136,2]
[422639659,1779197443000,-500.0,0.00010136,2]
[422639664,1779197443000,-500.0,0.00010136,2]
[422639665,1779197443000,-626.08,0.00010136,2]
[422639653,1779197443000,-518.42,0.00010136,2]
[422639672,1779197443000,-786.14940926,0.00010273,2]
[422639674,1779197443000,-2481.09826505,0.00010379,2]
[422639678,1779197443000,-500.0,0.0001041,2]
[422639668,1779197443000,-348.0375268,0.00010181,2]
[422639675,1779197443000,-200.0,0.00010391,2]
[422639663,1779197443000,-500.0,0.00010136,2]
[422639666,1779197443000,-717.1,0.00010136,2]
[422639673,1779197443000,-500.0,0.00010371,2]
[422639669,1779197443000,-14811.5670961,0.00010181,2]
[422639676,1779197443000,-710.09,0.0001041,2]
[422639670,1779197443000,-151.57877238,0.00010262,2]
[422639677,1779197443000,-518.42,0.0001041,2]
[422639671,1779197443000,-2673.18552198,0.00010273,2]
[422639667,1779197443000,-33791.215626,0.00010181,2]
[422639738,1779197444000,-462.902054,0.00010577,2]
[422639739,1779197444000,-429.49159796,0.00010618,2]
[422639740,1779197444000,-160.0,0.00010625,2]
[422639741,1779197444000,-192.7017,0.00010625,2]
[422639744,1779197444000,-1517.686832,0.00010625,2]
[422639750,1779197444000,-710.09,0.00010684,2]
[422639745,1779197444000,-2875.373664,0.00010625,2]
[422639746,1779197444000,-160.0,0.00010629,2]
[422639748,1779197444000,-931.244379,0.00010629,2]
[422639742,1779197444000,-225.4034,0.00010625,2]
[422639754,1779197444000,-960.84,0.00010684,2]
[422639749,1779197444000,-198.086346,0.00010629,2]
[422639751,1779197444000,-518.42,0.00010684,2]
[422639753,1779197444000,-4869.65,0.00010684,2]
[422639752,1779197444000,-500.0,0.00010684,2]
[422639755,1779197444000,-500.0,0.00010684,2]
[422639756,1779197444000,-500.0,0.00010684,2]
[422639757,1779197444000,-805.65,0.00010684,2]
[422639758,1779197444000,-500.0,0.00010684,2]
[422639759,1779197444000,-292.38057083,0.00010684,2]
[422639732,1779197444000,-707.715923,0.00010577,2]
[422639747,1779197444000,-545.622189,0.00010629,2]
[422639733,1779197444000,-160.0,0.00010577,2]
[422639721,1779197444000,-160.0,0.00010542,2]
[422639734,1779197444000,-3102.558234,0.00010577,2]
[422639761,1779197444000,-626.08,0.00010684,2]
[422639717,1779197444000,-10252.728035,0.00010524,2]
[422639714,1779197444000,-1436.310676,0.00010524,2]
[422639716,1779197444000,-5206.364017,0.00010524,2]
[422639713,1779197444000,-798.155338,0.00010524,2]
[422639715,1779197444000,-160.0,0.00010524,2]
[422639719,1779197444000,-1792.38647,0.00010524,2]
[422639729,1779197444000,-390.833485,0.00010577,2]
[422639718,1779197444000,-160.0,0.00010524,2]
[422639730,1779197444000,-160.0,0.00010577,2]
[422639736,1779197444000,-160.0,0.00010577,2]
[422639723,1779197444000,-280.751159,0.00010542,2]
[422639720,1779197444000,-3424.77294,0.00010524,2]
[422639726,1779197444000,-1165.999935,0.00010572,2]
[422639725,1779197444000,-160.0,0.00010572,2]
[422639722,1779197444000,-220.375579,0.00010542,2]
[422639728,1779197444000,-458.13824563,0.00010573,2]
[422639727,1779197444000,-2171.99987,0.00010572,2]
[422639731,1779197444000,-433.857961,0.00010577,2]
[422639735,1779197444000,-6045.116468,0.00010577,2]
[422639743,1779197444000,-160.0,0.00010625,2]
[422639737,1779197444000,-311.451027,0.00010577,2]
[422639724,1779197444000,-650.0,0.00010545,2]
[422639760,1779197444000,-500.0,0.00010684,2]
[422639811,1779197444000,-443.0,0.00011083,2]
[422639765,1779197444000,-1000.0,0.00010798,2]
[422639788,1779197444000,-4869.65,0.00010958,2]
[422639790,1779197444000,-500.0,0.00010958,2]
[422639792,1779197444000,-805.65,0.00010958,2]
[422639795,1779197444000,-626.08,0.00010958,2]
[422639791,1779197444000,-500.0,0.00010958,2]
[422639793,1779197444000,-500.0,0.00010958,2]
[422639797,1779197444000,-184.0,0.00010959,3]
[422639794,1779197444000,-598.1924011,0.00010958,2]
[422639796,1779197444000,-717.1,0.00010958,2]
[422639799,1779197444000,-151.0,0.00010959,2]
[422639802,1779197444000,-254.279514,0.00010973,2]
[422639804,1779197444000,-896.923027,0.00011004,2]
[422639803,1779197444000,-500.0,0.00011,2]
[422639801,1779197444000,-355.745823,0.00010964,2]
[422639800,1779197444000,-151.0,0.00010959,2]
[422639806,1779197444000,-3579.874885,0.00011008,2]
[422639805,1779197444000,-500.60534,0.00011008,2]
[422639808,1779197444000,-222.348115,0.00011059,2]
[422639807,1779197444000,-359.366569,0.00011008,2]
[422639810,1779197444000,-629.564065,0.00011063,2]
[422639809,1779197444000,-1751.177114,0.00011059,2]
[422639789,1779197444000,-960.84,0.00010958,2]
[422639786,1779197444000,-518.42,0.00010958,2]
[422639798,1779197444000,-151.0,0.00010959,2]
[422639783,1779197444000,-1378.758823,0.00010954,2]
[422639784,1779197444000,-1614.42119637,0.00010958,2]
[422639762,1779197444000,-717.1,0.00010684,2]
[422639767,1779197444000,-187.191271,0.000108,2]
[422639764,1779197444000,-200.0,0.00010789,2]
[422639766,1779197444000,-492.0,0.00010798,2]
[422639768,1779197444000,-5438.41176778,0.000108,2]
[422639770,1779197444000,-209.34192479,0.00010812,2]
[422639771,1779197444000,-3820.30507334,0.00010831,2]
[422639769,1779197444000,-3141.45303942,0.00010803,2]
[422639775,1779197444000,-471.6,0.000109,2]
[422639773,1779197444000,-204.75714309,0.00010878,2]
[422639763,1779197444000,-167.883752,0.00010739,2]
[422639774,1779197444000,-769.374317,0.00010887,2]
[422639776,1779197444000,-9583.254716,0.00010918,2]
[422639772,1779197444000,-3343.25928784,0.00010868,2]
[422639777,1779197444000,-500.0,0.00010919,2]
[422639779,1779197444000,-1926.274602,0.00010949,2]
[422639787,1779197444000,-500.0,0.00010958,2]
[422639781,1779197444000,-613.965644,0.00010954,2]
[422639778,1779197444000,-303.15754475,0.00010934,2]
[422639782,1779197444000,-4004.895398,0.00010954,2]
[422639780,1779197444000,-1350.194881,0.00010954,2]
[422639785,1779197444000,-710.09,0.00010958,2]
[422639854,1779197445000,-500.0,0.00011506,2]
[422639853,1779197445000,-805.65,0.00011506,2]
[422639849,1779197445000,-500.0,0.00011506,2]
[422639847,1779197445000,-710.09,0.00011506,2]
[422639846,1779197445000,-244.504492,0.00011503,2]
[422639840,1779197445000,-454.73631713,0.00011382,2]
[422639842,1779197445000,-500.0,0.00011467,2]
[422639845,1779197445000,-11252.989195,0.00011486,2]
[422639851,1779197445000,-960.84,0.00011506,2]
[422639839,1779197445000,-4425.81885563,0.00011361,2]
[422639841,1779197445000,-3466.95988149,0.00011416,2]
[422639858,1779197445000,-633.893509,0.00011556,2]
[422639855,1779197445000,-626.08,0.00011506,2]
[422639856,1779197445000,-717.1,0.00011506,2]
[422639857,1779197445000,-246.199781,0.00011527,2]
[422639850,1779197445000,-4869.65,0.00011506,2]
[422639860,1779197445000,-200.0,0.00011585,2]
[422639843,1779197445000,-160.0,0.00011486,2]
[422639859,1779197445000,-2044.427672,0.00011561,2]
[422639872,1779197445000,-606.31508951,0.0001168,2]
[422639873,1779197445000,-160.0,0.0001168,2]
[422639861,1779197445000,-13539.586874,0.00011588,2]
[422639867,1779197445000,-441.202823,0.00011598,2]
[422639865,1779197445000,-196.469006,0.00011598,2]
[422639871,1779197445000,-763.706642,0.00011656,2]
[422639852,1779197445000,-500.0,0.00011506,2]
[422639870,1779197445000,-287.015368,0.00011651,2]
[422639817,1779197445000,-160.0,0.00011134,2]
[422639848,1779197445000,-518.42,0.00011506,2]
[422639815,1779197445000,-1757.825954,0.00011129,2]
[422639814,1779197445000,-263.60596709,0.00011125,2]
[422639812,1779197445000,-742.0,0.00011083,2]
[422639813,1779197445000,-185.0,0.00011083,2]
[422639874,1779197445000,-893.698435,0.0001168,2]
[422639816,1779197445000,-2481.09826505,0.00011132,2]
[422639818,1779197445000,-7822.872416,0.00011134,2]
[422639823,1779197445000,-4772.02773,0.00011228,2]
[422639820,1779197445000,-1194.947674,0.00011184,2]
[422639821,1779197445000,-1287.554894,0.00011185,2]
[422639819,1779197445000,-15485.744832,0.00011134,2]
[422639825,1779197445000,-518.42,0.00011232,2]
[422639837,1779197445000,-409.51428618,0.00011325,2]
[422639824,1779197445000,-710.09,0.00011232,2]
[422639828,1779197445000,-960.84,0.00011232,2]
[422639826,1779197445000,-500.0,0.00011232,2]
[422639832,1779197445000,-500.0,0.00011232,2]
[422639829,1779197445000,-635.25856016,0.00011232,2]
[422639836,1779197445000,-3452.535923,0.00011284,2]
[422639831,1779197445000,-805.65,0.00011232,2]
[422639833,1779197445000,-626.08,0.00011232,2]
[422639835,1779197445000,-418.68384957,0.00011257,2]
[422639827,1779197445000,-4869.65,0.00011232,2]
[422639834,1779197445000,-717.1,0.00011232,2]
[422639830,1779197445000,-500.0,0.00011232,2]
[422639838,1779197445000,-901.199476,0.0001134,2]
[422639822,1779197445000,-200.0,0.00011187,2]
[422639864,1779197445000,-432.062362,0.00011598,2]
[422639844,1779197445000,-5706.494597,0.00011486,2]
[422639866,1779197445000,-1281.566527,0.00011598,2]
[422639902,1779197445000,-1911.411455,0.00011977,2]
[422639909,1779197445000,-192.255888,0.00012007,2]
[422639910,1779197445000,-500.0,0.00012015,2]
[422639903,1779197445000,-181.552009,0.00011981,2]
[422639911,1779197445000,-511.197397,0.00012032,2]
[422639906,1779197445000,-505.68936547,0.00012,2]
[422639908,1779197445000,-232.90238,0.00012002,2]
[422639912,1779197445000,-480.332277,0.00012037,2]
[422639914,1779197445000,-518.42,0.00012054,2]
[422639913,1779197445000,-710.09,0.00012054,2]
[422639917,1779197445000,-960.84,0.00012054,2]
[422639919,1779197445000,-805.65,0.00012054,2]
[422639901,1779197445000,-849.906475,0.00011973,2]
[422639924,1779197445000,-160.0,0.00012055,2]
[422639916,1779197445000,-4869.65,0.00012054,2]
[422639922,1779197445000,-717.1,0.00012054,2]
[422639915,1779197445000,-500.0,0.00012054,2]
[422639920,1779197445000,-500.0,0.00012054,2]
[422639921,1779197445000,-626.08,0.00012054,2]
[422639923,1779197445000,-160.0,0.00012055,2]
[422639925,1779197445000,-160.0,0.00012055,2]
[422639926,1779197445000,-161.69304527,0.00012055,2]
[422639928,1779197445000,-263.507013,0.00012088,2]
[422639927,1779197445000,-559.921307,0.00012062,2]
[422639929,1779197445000,-413.862082,0.00012088,2]
[422639869,1779197445000,-614.27142928,0.00011622,2]
[422639918,1779197445000,-500.0,0.00012054,2]
[422639904,1779197445000,-1055.685138,0.00011982,2]
[422639907,1779197445000,-47169.77926907,0.00012,2]
[422639905,1779197445000,-200.0,0.00011983,2]
[422639863,1779197445000,-616.407872,0.00011593,2]
[422639868,1779197445000,-500.0,0.00011613,2]
[422639875,1779197445000,-1627.396871,0.0001168,2]
[422639877,1779197445000,-318.817132,0.00011692,2]
[422639900,1779197445000,-3595.2373971,0.00011964,2]
[422639881,1779197445000,-500.0,0.0001178,2]
[422639878,1779197445000,-373.584451,0.0001171,2]
[422639880,1779197445000,-518.42,0.0001178,2]
[422639887,1779197445000,-626.08,0.0001178,2]
[422639884,1779197445000,-500.0,0.0001178,2]
[422639882,1779197445000,-4869.65,0.0001178,2]
[422639885,1779197445000,-805.65,0.0001178,2]
[422639883,1779197445000,-960.84,0.0001178,2]
[422639879,1779197445000,-710.09,0.0001178,2]
[422639895,1779197445000,-1527.048873,0.00011888,2]
[422639886,1779197445000,-500.0,0.0001178,2]
[422639891,1779197445000,-382.383255,0.00011842,2]
[422639899,1779197445000,-9876.625265,0.00011955,2]
[422639898,1779197445000,-1104.811495,0.00011947,2]
[422639896,1779197445000,-4666.22907293,0.00011891,2]
[422639890,1779197445000,-3029.609026,0.00011788,2]
[422639892,1779197445000,-412.017566,0.00011843,2]
[422639888,1779197445000,-717.1,0.0001178,2]
[422639894,1779197445000,-791.0,0.00011878,2]
[422639889,1779197445000,-562.504305,0.00011784,2]
[422639893,1779197445000,-1000.0,0.00011878,2]
[422639897,1779197445000,-471.6,0.000119,2]
[422639942,1779197446000,-4869.65,0.00012328,2]
[422639945,1779197446000,-805.65,0.00012328,2]
[422639944,1779197446000,-500.0,0.00012328,2]
[422639943,1779197446000,-960.84,0.00012328,2]
[422639940,1779197446000,-518.42,0.00012328,2]
[422639938,1779197446000,-273.145399,0.00012317,2]
[422639941,1779197446000,-500.0,0.00012328,2]
[422639939,1779197446000,-710.09,0.00012328,2]
[422639931,1779197446000,-324.833402,0.00012125,2]
[422639948,1779197446000,-626.08,0.00012328,2]
[422639937,1779197446000,-5250.19298891,0.000123,2]
[422639936,1779197446000,-2888.445199,0.0001227,2]
[422639933,1779197446000,-1546.785753,0.00012157,2]
[422639932,1779197446000,-1365.814044,0.00012125,2]
[422639930,1779197446000,-5250.19298891,0.000121,2]
[422639934,1779197446000,-609.58898731,0.00012194,2]
[422639935,1779197446000,-5250.19298891,0.000122,2]
[422639952,1779197446000,-2031.06,0.00012329,2]
[422639946,1779197446000,-500.0,0.00012328,2]
[422639950,1779197446000,-717.1,0.00012328,2]
[422639951,1779197446000,-2437.28,0.00012329,2]
[422639953,1779197446000,-562.211658,0.00012378,2]
[422639971,1779197446000,-4869.65,0.00012602,2]
[422639974,1779197446000,-114.22038185,0.00012602,2]
[422639973,1779197446000,-379.53,0.00012602,2]
[422639972,1779197446000,-960.84,0.00012602,2]
[422639970,1779197446000,-500.0,0.00012602,2]
[422639968,1779197446000,-710.09,0.00012602,2]
[422639969,1779197446000,-518.42,0.00012602,2]
[422639967,1779197446000,-5250.19298891,0.000126,2]
[422639964,1779197446000,-3728.2611808,0.00012512,2]
[422639966,1779197446000,-518.7741899,0.00012573,2]
[422639954,1779197446000,-200.0,0.00012381,2]
[422639965,1779197446000,-1448.024004,0.00012562,2]
[422639961,1779197446000,-1385.59573854,0.000125,3]
[422639962,1779197446000,-6790.56165767,0.000125,3]
[422639958,1779197446000,-694.091708,0.00012469,2]
[422639955,1779197446000,-5250.19298891,0.000124,2]
[422639959,1779197446000,-803.77487637,0.000125,2]
[422639956,1779197446000,-5031.33263792,0.00012421,2]
[422639960,1779197446000,-42831.84260379,0.000125,3]
[422639957,1779197446000,-1687.184046,0.0001244,2]
[422639963,1779197446000,-908.6667667,0.00012506,2]
[422639984,1779197449000,5000.0,0.00017808,120]
[422639985,1779197491000,-390.05858232,6.573e-05,2]
[422639986,1779197499000,200.0,0.000178,120]
[422639987,1779197519000,10000.0,0.00017808,120]
[422639988,1779197527000,10000.0,0.00017808,120]
[422639989,1779197534000,10000.0,0.00016,30]
[422639990,1779197543000,10000.0,0.00017808,120]
[422639991,1779197550000,10000.0,0.00017808,120]
[422639992,1779197556000,10000.0,0.00017808,120]
[422639993,1779197564000,10000.0,0.00017808,120]
[422639994,1779197573000,10000.0,0.00017808,120]
[422639995,1779197581000,10000.0,0.00017808,120]
[422639996,1779197589000,10000.0,0.00017808,120]
[422639999,1779197815000,-190.0,8.219e-05,2]
[422640000,1779197854000,-200.0,8.219e-05,2]
[422640001,1779197963000,250.0,0.00015879,30]
[422640003,1779197964000,250.0,0.00015879,30]
[422640002,1779197964000,250.0,0.00015879,30]
[422640005,1779197966000,294.0,0.00015879,30]
[422640004,1779197966000,250.0,0.00015879,30]
[422640006,1779197969000,165.749518,3.935e-05,2]
[422640011,1779198133000,190.0,0.00015879,30]
[422640014,1779198262000,400.0,0.00015879,30]
[422640015,1779198263000,400.0,0.00015879,30]
[422640016,1779198264000,400.0,0.00015879,30]
[422640017,1779198265000,400.0,0.00015879,30]
[422640018,1779198266000,523.0,0.00015879,30]
[422640021,1779198429000,10000.0,0.00017808,120]
[422640023,1779198622000,300.0,0.00015879,30]
[422640024,1779198623000,300.0,0.00015879,30]
[422640025,1779198624000,300.0,0.00015879,30]
[422640026,1779198626000,300.0,0.00015879,30]
[422640027,1779198627000,300.0,0.00015879,30]
[422640028,1779198627000,228.0,0.00015879,30]
[422640200,1779198641000,-1967.68967864,8.585e-05,2]
[422640211,1779198641000,-300.0,8.662e-05,2]
[422640206,1779198641000,-300.0,8.662e-05,2]
[422640202,1779198641000,-300.0,8.662e-05,2]
[422640204,1779198641000,-300.0,8.662e-05,2]
[422640215,1779198641000,-179.22554638,8.662e-05,2]
[422640226,1779198641000,-500.0,8.784e-05,2]
[422640228,1779198641000,-500.0,8.784e-05,2]
[422640217,1779198641000,-300.0,8.662e-05,2]
[422640201,1779198641000,-300.0,8.662e-05,2]
[422640218,1779198641000,-300.0,8.662e-05,2]
[422640216,1779198641000,-120.77445362,8.662e-05,2]
[422640208,1779198641000,-300.0,8.662e-05,2]
[422640196,1779198641000,-285.280834,8.519e-05,2]
[422640209,1779198641000,-300.0,8.662e-05,2]
[422640210,1779198641000,-300.0,8.662e-05,2]
[422640198,1779198641000,-176.747651,8.556e-05,2]
[422640207,1779198641000,-300.0,8.662e-05,2]
[422640193,1779198641000,-1848.37783523,8.485e-05,2]
[422640192,1779198641000,-1235.49388098,8.385e-05,2]
[422640191,1779198641000,-622.60992674,8.285e-05,2]
[422640187,1779198641000,-200.0,7.937e-05,2]
[422640189,1779198641000,-500.0,8.219e-05,2]
[422640195,1779198641000,-500.0,8.493e-05,2]
[422640190,1779198641000,-500.0,8.219e-05,2]
[422640186,1779198641000,-282.15186754,7.827e-05,2]
[422640219,1779198641000,-300.0,8.662e-05,2]
[422640214,1779198641000,-300.0,8.662e-05,2]
[422640227,1779198641000,-1420.32,8.784e-05,2]
[422640185,1779198641000,-165.749518,7.717e-05,2]
[422640220,1779198641000,-300.0,8.662e-05,2]
[422640252,1779198641000,-10758.67091351,9.214e-05,2]
[422640253,1779198641000,-1000.0,9.214e-05,2]
[422640254,1779198641000,-426.41740944,9.214e-05,2]
[422640251,1779198641000,-17428.76437263,9.214e-05,2]
[422640249,1779198641000,-2989.69399633,9.085e-05,2]
[422640250,1779198641000,-3509.46708067,9.123e-05,2]
[422640248,1779198641000,-153.9559641,9.085e-05,2]
[422640244,1779198641000,-500.0,9.058e-05,2]
[422640243,1779198641000,-500.0,9.058e-05,2]
[422640245,1779198641000,-500.0,9.058e-05,2]
[422640246,1779198641000,-500.0,9.058e-05,2]
[422640242,1779198641000,-1420.32,9.058e-05,2]
[422640241,1779198641000,-500.0,9.058e-05,2]
[422640238,1779198641000,-2751.6631998,8.885e-05,2]
[422640247,1779198641000,-500.0,9.058e-05,2]
[422640235,1779198641000,-2461.26178947,8.785e-05,2]
[422640224,1779198641000,-500.81735529,8.783e-05,2]
[422640222,1779198641000,-2359.67643916,8.685e-05,2]
[422640239,1779198641000,-3074.14574371,8.985e-05,2]
[422640240,1779198641000,-500.0,9.058e-05,2]
[422640234,1779198641000,-500.0,8.784e-05,2]
[422640232,1779198641000,-186.5136814,8.784e-05,2]
[422640223,1779198641000,-500.32959943,8.783e-05,2]
[422640229,1779198641000,-500.0,8.784e-05,2]
[422640230,1779198641000,-556.66,8.784e-05,2]
[422640233,1779198641000,-500.0,8.784e-05,2]
[422640231,1779198641000,-500.0,8.784e-05,2]
[422640237,1779198641000,-285.280834,8.878e-05,2]
[422640236,1779198641000,-600.0,8.834e-05,2]
[422640225,1779198641000,-500.0,8.784e-05,2]
[422640264,1779198643000,-952.63465085,9.214e-05,2]
[422640267,1779198643000,-1418.9745,9.214e-05,2]
[422640265,1779198643000,-275.79946348,9.214e-05,2]
[422640263,1779198643000,-2318.2818666,9.214e-05,2]
[422640273,1779198647000,-3686.99276953,9.214e-05,2]
[422640272,1779198647000,-18529.37258802,9.214e-05,2]
[422640277,1779198771000,161.0,0.00016,30]
[422640278,1779198772000,161.0,0.00016,30]
[422640437,1779199072000,6587.14668206,0.00017808,120]
[422640615,1779199272000,-300.0,8.782e-05,2]
[422640629,1779199289000,-300.0,8.782e-05,2]
[422640638,1779199306000,-929.59583805,8.782e-05,2]
[422640649,1779199323000,-270.40416195,8.782e-05,2]
[422640657,1779199340000,-285.32552496,8.783e-05,2]
[422640670,1779199357000,-500.0,8.783e-05,2]
[422640686,1779199375000,-500.0,8.94e-05,2]
[422640799,1779199549000,3266.88,0.00016,30]
[422640972,1779199832000,-1435.0778604,8.941e-05,2]
[422640983,1779199832000,-421.85929892,9.012e-05,2]
[422640985,1779199832000,-622.79972995,9.012e-05,2]
[422640987,1779199832000,-1086.5696961,9.014e-05,2]
[422640990,1779199832000,-828.8409146,9.014e-05,2]
[422641002,1779199832000,-1301.96,9.214e-05,2]
[422641000,1779199832000,-500.0,9.214e-05,2]
[422640994,1779199832000,-115.1489366,9.014e-05,2]
[422640973,1779199832000,-16864.1459822,8.941e-05,2]
[422641005,1779199832000,-500.0,9.214e-05,2]
[422640998,1779199832000,-500.0,9.214e-05,2]
[422641004,1779199832000,-500.0,9.214e-05,2]
[422640992,1779199832000,-65.06593184,9.014e-05,2]
[422640981,1779199832000,-500.0,9.012e-05,2]
[422640975,1779199832000,-3175.6439078,8.941e-05,2]
[422640979,1779199832000,-500.0,9.012e-05,2]
[422640977,1779199832000,-397.089831,8.966e-05,2]
[422640968,1779199832000,-500.0,8.94e-05,2]
[422640966,1779199832000,-500.0,8.94e-05,2]
[422640956,1779199832000,-500.0,8.94e-05,2]
[422640954,1779199832000,-279.61901447,8.94e-05,2]
[422640960,1779199832000,-500.0,8.94e-05,2]
[422640950,1779199832000,-480.0,8.912e-05,2]
[422640952,1779199832000,-50109.31464985,8.913e-05,2]
[422640964,1779199832000,-1301.96,8.94e-05,2]
[422640961,1779199832000,-307.28186419,8.94e-05,2]
[422640958,1779199832000,-500.0,8.94e-05,2]
[422640996,1779199832000,-500.0,9.214e-05,2]
[422640969,1779199832000,-500.0,8.94e-05,2]
[422641007,1779199832000,-500.0,9.214e-05,2]
[422641023,1779199832000,-300.0,9.397e-05,2]
[422641011,1779199832000,-397.089831,9.343e-05,2]
[422641065,1779199832000,-500.0,9.762e-05,2]
[422641067,1779199832000,-500.0,9.762e-05,2]
[422641061,1779199832000,-397.089831,9.721e-05,2]
[422641062,1779199832000,-500.0,9.762e-05,2]
[422641053,1779199832000,-1301.96,9.488e-05,2]